Cogmind - Beta 13 @@@ ROGUE MODE // 2024.05.13 @ 13:19:04 Player: Barbarossa Result: Destroyed by 0W-BHJ(R) with Subdweller Machine Gun Performance ------------- Evolutions (0) 0 Regions Visited (2) 400 Robots Destroyed (16) 80 Value Destroyed (403) 403 Prototype IDs (2) 40 Alien Tech Used (0) 0 Bonus (-20) -20 TOTAL SCORE: 903 Bonus ------- Friendly Fire -20 Cogmind --------- Core Integrity 0/250 Matter 300/300 Energy 229/250 System Corruption 0% Temperature Cool (0) Movement Rolling (130) Ox2 Location -10/Subcaves Parts ------- > --- POWER (1) -------- Ion Engine > --- PROPULSION (2) --- Subdweller Monowheel Subdweller Monowheel > --- UTILITY (2) ------ Improved Heat Sink Huge Storage Unit > --- WEAPON (2) ------- Particle Gun Beamcaster > --- INVENTORY (25) --- Light Treads Light Treads Light Treads Myomer Leg Subdweller Monowheel Subdweller Monowheel Subdweller Monowheel Disposable Heat Sink Huge Storage Unit Large Battery (200) High-capacity Battery (250) High-capacity Matter Pod (200) Subdweller Optics Scrap Shield High-powered Tractor Beam Subdweller Laser Subdweller Laser Beamcaster Light Assault Rifle Subdweller Machine Gun Subdweller Machine Gun Light Cannon Bore Cannon Piercing Trap Peak State ------------ > --- POWER ------------ Ion Engine > --- PROPULSION ------- Subdweller Monowheel Subdweller Monowheel > --- UTILITY ---------- Improved Heat Sink Huge Storage Unit > --- WEAPON ----------- Particle Gun Beamcaster > --- INVENTORY -------- Light Treads Light Treads Light Treads Myomer Leg Subdweller Monowheel Subdweller Monowheel Subdweller Monowheel Disposable Heat Sink Huge Storage Unit Large Battery High-capacity Battery High-capacity Matter Pod Subdweller Optics Scrap Shield High-powered Tractor Beam Subdweller Laser Subdweller Laser Beamcaster Light Assault Rifle Light Assault Rifle Subdweller Machine Gun Light Cannon Bore Cannon Piercing Trap [Rating: 21] Favorites ----------- Power Ion Engine Engine Ion Engine Propulsion Wheel Leg Aluminum Leg Wheel Wheel Utility Huge Storage Unit Device Improved Heat Sink Storage Huge Storage Unit Weapon Particle Gun Energy Gun Particle Gun Ballistic Gun Light Assault Rifle Build | -11 -10 -10 ------- Run | Yrd Mat Sub Slots Evolved . | . . . Power . | . . . Propulsion . | . . . Utility . | . . . Weapon . | . . . Parts Attached 20 | 1 10 9 Power 3 | . 2 1 Engine 3 | . 2 1 Core . | . . . Reactor . | . . . Propulsion 8 | . 3 5 Treads . | . . . Leg . | . . . Wheel 8 | . 3 5 Hover . | . . . Flight . | . . . Utility 5 | . 4 1 Device 2 | . 1 1 Storage 3 | . 3 . Processor . | . . . Hackware . | . . . Protection . | . . . Artifact . | . . . Weapon 4 | 1 1 2 Energy Gun 3 | . 1 2 Energy Cannon . | . . . Ballistic Gun 1 | 1 . . Ballistic Cannon . | . . . Launcher . | . . . Special Weapon . | . . . Impact Weapon . | . . . Slashing Weapon . | . . . Piercing Weapon . | . . . Special Melee Weapon . | . . . Unidentified Prototypes . | . . . Parts Lost 5 | . 4 1 Power 2 | . 2 . Propulsion 2 | . 1 1 Utility . | . . . Weapon 1 | . 1 . Highest Loss Streak 2 | . 2 1 To Critical Strikes . | . . . Average Slot Usage (%) 94 | . 88 100 Engine 13 | . 13 14 Leg 1 | . 2 . Wheel 26 | . 24 28 Device 9 | . 4 14 Storage 13 | . 13 14 Energy Gun 23 | . 18 28 Ballistic Gun 4 | . 9 . Naked Turns . | . . . Heaviest Build 94 | 11 91 94 Greatest Support 40 | 20 20 40 Greatest Overweight (x) 4 | . 4 4 Average Overweight (x) 2 | . 2 2 Largest Inventory Capacity 25 | 8 25 25 Average Capacity 22 | 8 20 25 Most Carried 25 | 6 20 25 Average Carried 18 | 5 10 24 Final Capacity 25 | 8 25 25 Final Carried 25 | 5 20 25 Class Distribution -------------------- 66% | Scavenger-Mutant 33% | Mutant Dominant Class ---------------- Mutant | -10/Materials Scavenger-Mutant | -10/Subcaves Resources | -11 -10 -10 ----------- Run | Yrd Mat Sub Matter Collected 641 | 200 325 116 Remotely . | . . . Salvage Created 589 | . 488 101 Parts 39 | . 31 8 Haulers Intercepted 1 | . 1 . Recyclers Shooed . | . . . Parts Field Recycled . | . . . Retrieved Matter . | . . . Parts Self-Destructed 9 | . . 9 Prevented . | . . . Kills | -11 -10 -10 ------- Run | Yrd Mat Sub Combat Hostiles Destroyed 9 | . 7 2 Guns 8 | . 6 2 Classes Destroyed 7 | . 6 1 Worker 1 | . 1 . Builder 2 | . 2 . Tunneler 1 | . 1 . Hauler 1 | . 1 . Watcher 2 | . 2 . Grunt 8 | . 7 1 Subdweller 1 | . . 1 Best Kill Streak 5 | . 5 1 Combat Bots Only 2 | . 2 1 Max Kills in Single Turn 1 | . 1 1 Gunslinging . | . . . Exploded . | . . . Melee . | . . . Uniques/NPCs Destroyed . | . . . Combat | -11 -10 -10 -------- Run | Yrd Mat Sub Hostile Shots Fired 77 | . 56 21 Missed 19 | . 15 4 Damage Taken 836 | . 516 320 Core 262 | . 181 81 Absorbed by Shields . | . . . Regen/Repaired (Parts) 18 | . 18 . Core Remaining (%) 100 | 100 . . Volleys Fired 83 | . 58 25 Largest 2 | . 2 2 Hottest 140 | . 70 140 Shots Fired 164 | . 114 50 Gun 164 | . 114 50 Cannon . | . . . Launcher . | . . . Special . | . . . Kinetic 56 | . 56 . Thermal 108 | . 58 50 Explosive . | . . . Electromagnetic . | . . . Robot Hit Streak 9 | . 9 9 Robot Miss Streak 4 | . 4 1 Penetration Max . | . . . Secondary Targets 3 | . 3 . Max Gunslinging Chain 1 | . 1 . Shots Hit Robots 93 | . 75 18 Core Hits 33 | . 27 6 Critical Kills . | . . . Critical Parts Destroyed . | . . . Critical Strikes 4 | . 2 2 Burn 4 | . 2 2 Melee Attacks . | . . . Impact . | . . . Slashing . | . . . Piercing . | . . . Sneak Attacks . | . . . Combat Hostiles . | . . . Follow-up Attacks . | . . . Damage Inflicted 1129 | . 811 318 Guns 1129 | . 811 318 Cannons . | . . . Explosions . | . . . Melee . | . . . Ramming . | . . . Kinetic 313 | . 313 . Thermal 816 | . 498 318 Explosive . | . . . Electromagnetic . | . . . Impact . | . . . Slashing . | . . . Piercing . | . . . Highest Corruption . | . . . Average Corruption . | . . . Corruption Purged . | . . . Corruption Blocked . | . . . Overload Shots . | . . . Overflow Damage . | . . . Projectiles . | . . . Explosions . | . . . Melee . | . . . Knockbacks . | . . . Impact . | . . . Kinetic . | . . . Secondary . | . . . Self-Inflicted Damage . | . . . Shots . | . . . Rammed . | . . . Targets Rammed . | . . . Kicked . | . . . Crushed . | . . . Highest Temperature 285 | . 285 1 Average Temperature 90 | . 91 1 Received Heat Transfer 408 | . 294 114 Siege Activations . | . . . Robots Corrupted . | . . . Combat Hostiles . | . . . Parts Fried . | . . . Impact Corruptions . | . . . Robots Melted 1 | . 1 . Combat Hostiles 1 | . 1 . Parts Melted 5 | . 5 . Heat Transferred 2479 | . 1628 851 Parts Sabotaged . | . . . Parts Stolen . | . . . Parts Stripped . | . . . Power Chain Reactions . | . . . Alert | -11 -10 -10 ------- Run | Yrd Mat Sub Peak Influence 100 | . 100 . Initial . | . . . Average 30 | . 30 . Maximum Alert Level . | . . . Low Security (%) 100 | 100 100 . Level 1 . | . . . Level 2 . | . . . Level 3 . | . . . Level 4 . | . . . Level 5 . | . . . High Security . | . . . Max Security . | . . . Squads Dispatched 1 | . 1 . Investigation . | . . . Extermination . | . . . Reinforcement 1 | . 1 . Assault . | . . . Garrison . | . . . Intercept . | . . . Searches Triggered . | . . . Construction Impeded . | . . . Haulers Reinforced . | . . . Active Scanning Responses . | . . . Cargo Convoy Interrupts . | . . . Stealth | -11 -10 -10 --------- Run | Yrd Mat Sub Distress Signals 1 | . 1 . Communications Jammed . | . . . Distress Signals . | . . . Times Spotted 29 | . 14 15 Peak Tracking Total 4 | . 2 4 Tactical Retreats . | . . . Traps | -11 -10 -10 ------- Run | Yrd Mat Sub Traps Triggered . | . . . Indirectly . | . . . Trap Hack Attempts . | . . . Triggered . | . . . Disarmed . | . . . Reprogrammed . | . . . Reused . | . . . Traps Extracted . | . . . Installed . | . . . Triggered . | . . . Most Traps Carried 1 | . . 1 Machines | -11 -10 -10 ---------- Run | Yrd Mat Sub Machines Disabled . | . . . Max in Single Turn . | . . . Machines Repaired . | . . . Machines Dismantled . | . . . Machines Sabotaged . | . . . Overloaded Fab Kills . | . . . Hacking | -11 -10 -10 --------- Run | Yrd Mat Sub Machines Accessed 10 | . 10 . Terminals 8 | . 8 . Fabricators . | . . . Repair Stations 1 | . 1 . Recycling Units 1 | . 1 . Scanalyzers . | . . . Garrison Access . | . . . Total Hacks 29 | . 29 . Successful 18 | . 18 . Failed 11 | . 11 . Catastrophic . | . . . Database Lockouts . | . . . Manual 24 | . 24 . Terminals 26 | . 26 . Fabricators . | . . . Repair Stations 2 | . 2 . Recycling Units 1 | . 1 . Scanalyzers . | . . . Garrison Access . | . . . Terminal Hacks 6 | . 6 . Prototype ID Bank 1 | . 1 . Terminal Index 1 | . 1 . Unreport Threat 2 | . 2 . Locate Traps 2 | . 2 . Fabricator Hacks . | . . . Repair Station Hacks 2 | . 2 . Scan Component 1 | . 1 . Repair 1 | . 1 . Recycling Unit Hacks 1 | . 1 . Report Inventory 1 | . 1 . Scanalyzer . | . . . Garrison Access Hacks . | . . . Unauthorized Hacks 9 | . 9 . Terminals 9 | . 9 . Assimilate 2 | . 2 . Botnet 7 | . 7 . Fabricators . | . . . Repair Stations . | . . . Recycling Units . | . . . Scanalyzers . | . . . Garrison Access . | . . . Data Cores Recovered . | . . . Used . | . . . Hacking Detections 9 | . 9 . Full Trace Events . | . . . Feedback Events . | . . . Feedback Blocked . | . . . Robot Schematics Acquired . | . . . Robots Built . | . . . Authchips . | . . . Time . | . . . Total Robot Build Rating . | . . . Part Schematics Acquired . | . . . Parts Built . | . . . Authchips . | . . . Time . | . . . Total Part Build Rating . | . . . Parts Repaired 1 | . 1 . Time 26 | . 26 . Parts Recycled . | . . . Recycled Matter . | . . . Retrieved Matter . | . . . Retrieved Components . | . . . Parts Scanalyzed . | . . . Part Schematics Acquired . | . . . Parts Damaged . | . . . Bothacking | -11 -10 -10 ------------ Run | Yrd Mat Sub Used RIF Installer . | . . . Robots Hacked . | . . . Non-combat . | . . . Combat . | . . . Robot Hacks Applied . | . . . Relay Couplers Released . | . . . Fabnet Peak Effective % . | . . . Robots Rewired . | . . . Allies Hacked . | . . . Hacks Repelled . | . . . Allies | -11 -10 -10 -------- Run | Yrd Mat Sub Total Allies . | . . . Largest Group . | . . . Highest-Rated Group . | . . . Highest-Rated Ally . | . . . Total Orders . | . . . Ally Attacks . | . . . Total Damage . | . . . Kills . | . . . Allies Corrupted . | . . . Allies Melted . | . . . Intel | -11 -10 -10 ------- Run | Yrd Mat Sub Robot Analysis Total . | . . . Derelict Logs Recovered 1 | . . 1 Drone Launches . | . . . Drone Recoveries . | . . . Exploration | -11 -10 -10 ------------- Run | Yrd Mat Sub Turns Passed 2351 | 2 1124 1225 Spaces Moved 1539 | 1 708 830 Core . | . . . Treads . | . . . Legs 86 | 1 85 . Wheels 1453 | . 623 830 Hover . | . . . Flight . | . . . Fastest Speed 110 | 120 110 130 Average Speed 128 | 120 124 131 Slowest Speed 140 | 120 140 140 Overloaded Moves . | . . . Propulsion Burnouts . | . . . Robots Hopped . | . . . Cave-ins Triggered . | . . . Exploration Rate (%) 51 | 2 97 55 Regions Visited 2 Branch Regions 1 Pre-discovered Areas . | . . . Known Exits Taken . | . . . Unknown Exits Taken 2 | 1 1 . Scrap Searched 1 | . . 1 Spaces Dug . | . . . Terrain Destroyed . | . . . Melee . | . . . Projectile . | . . . AOE . | . . . Terrain Rammed . | . . . Walls Destroyed . | . . . Machines Disabled . | . . . Actions | -11 -10 -10 --------- Run | Yrd Mat Sub Total 1772 | 2 849 921 Wait 59 | . 33 26 Move 1537 | . 707 830 Hop . | . . . Pick Up 50 | . 35 15 Fast Attach 6 | . 6 . Attach 4 | 1 2 1 Detach . | . . . Swap 10 | . 2 8 Drop 23 | 1 6 16 Fire 83 | . 58 25 Melee . | . . . Ram . | . . . Kick . | . . . Crush . | . . . Escape Stasis . | . . . Rewire . | . . . Trap . | . . . Miscellaneous . | . . . Route ------- -11/Scrapyard -10/Materials (discovered 4 exits: [*Mat x3] / [*Sub]) -10/Subcaves (discovered 1 exit: [*Mat]) History --------- Turn | Location | Event 3 | -11/Scrapyard | Discovered new exit (range 0) 3 | -11/Scrapyard | Entered Materials 271 | -10/Materials | Discovered new exit (range 15) 308 | -10/Materials | Build established: Mutant 502 | -10/Materials | Discovered new exit (range 3) 515 | -10/Materials | Core integrity fell below 50% 658 | -10/Materials | Discovered new exit (range 10) 1050 | -10/Materials | Repaired Huge Storage Unit 1090 | -10/Materials | Build established: Scavenger-Mutant 1111 | -10/Materials | Discovered new exit (range 2) 1127 | -10/Materials | Entered Subcaves 1149 | -10/Subcaves | Discovered new exit (range 15) 1182 | -10/Subcaves | Learned Materials emergency access door positions 1193 | -10/Subcaves | Ambushed by swarm of Subdwellers 1197 | -10/Subcaves | Ambushed by Subdwellers from Twisted Machinery 1205 | -10/Subcaves | Core integrity fell below 20% 1346 | -10/Subcaves | Shifting Twisted Machinery released Piercing Trap 1347 | -10/Subcaves | Shifting Twisted Machinery released Sub. Monowheel 2125 | -10/Subcaves | A swath of the cavern ceiling suddenly collapsed 2352 | -10/Subcaves | Destroyed by 0W-BHJ(R) with Subdweller Machine Gun Last Messages --------------- 02015_ Dropped Sub. Laser. 02016_ Dropped Particle Gun. 02017_ Acquired Sub. Laser. 02018_ Acquired 10 matter. 02020_ Dropped Particle Gun. 02021_ Acquired Sub. Laser. 02026_ Dropped Imp. Heat Sink. 02027_ Acquired 9 matter. 02029_ Acquired 1 matter. 02032_ Dropped Wheel. 02033_ Acquired Sub. Monowheel. A swath of the cavern ceiling suddenly collapses. 02335_ Searching scrap... 02335_ Found Sub. Machine Gun. 02335_ Found 31 Matter. 02337_ Dropped Lgt. Assault Rifle. 02338_ Acquired Sub. Machine Gun. 02348_ Z5-3PI(R) suffers critical hit (Burn). 02348_ Z5-3PI(R) destroyed. Map ----- +----------------------------------------------------+ | ?????????????????## ##???###???????????????? | | ?????????????????## ###? ##??????????????? | | ????????????????## ## #??????????????? | | ???????????????## #??????????????? | | ???????????????# #??????????????? | | ???????????????## #??????????????? | | ???????????????## ##??????????????? | | ???????????????# ###???????????????? | | ???????????????## ##????????????????? | | ????????????????## #????????????????? | | ?????????????????# #????????????????? | | ?????????????????# ####????????????????? | | ?????????????????# ## ##??????????????????? | | ?????????????????##?# ######?????????????? | | ????????????????????# #?????????????? | | ????????????????????# #?????????????? | | ???????????????# ### ##?????????????? | | ???????????????# ??# ##??????????????? | | ??????????????# #### #??????????????? | | ??????????????# ##??????????????? | | ?????????????# ## #???????????????? | | ?????????????#### ? ??# ##??????????????? | | ????????????????# ? ??## #??????????????? | | ???????????????? ? ??# [ ##??????????????? | | ??????????????? ?? ???##% #???????????????? | | ??????????????? ?? ????#@g#???????????????? | | ??????????????? ??? ? &[ #??????????????? | | ????????????????? R%" ##??????????????? | | ??????????????# """##???????????????? | | ??????????????### """"#????????????????? | | ????????????????# "" ""#????????????????? | | ????????????????# " ### "" ????????????????? | | ????????????????# ""??#" ????????????????? | | ????????????????# "??? ???????????????????? | | ???????????????????????????????????????????? | | ???????????????????????????????????????????? | | ???????????????????????????????????????????? | | ???????????????????????????????????????????? | | ???????????????????????????????????????????? | | ???????????????????????????????????????????? | | ???????????????????????????????????????????? | | ???????????????????????????????????????????? | | ???????????????????????????????????????????? | | ???????????????????????????????????????????? | | ???????????????????????????????????????????? | | ???????????????????????????????????????????? | | ???????????????????????????????????????????? | | ???????????????????????????????????????????? | | ???????????????????????????????????????????? | | ???????????????????????????????????????????? | +----------------------------------------------------+ Best States ------------- Heat Dissipation 39 Energy Generation 10 Energy Capacity 250 Matter Stores 300 Matter Capacity 300 Sight Range 16 Terrain Scan Density 10 Evasion (%) 55 Item Schematics ----------------- None Robot Schematics ------------------ None Fabricated ------------ Nothing Alien Tech Used ----------------- None Achievements -------------- None Challenges ------------ None Game ------ Seed WardroneThermalModule Manual? 0 Play Time 00:21:01 Cumulative 165.1 hours Start 2024.05.13 @ 12:55:52 End 2024.05.13 @ 13:19:04 Sessions 1 Manual Loads 0 Difficulty Rogue Special Mode None Game No. 315 Rogue 315 Adventurer 0 Explorer 0 Win Type - Total 0 Types 0/0/0/0/0/0/0/0/0 Lore% 41 Gallery% 52 Achievement% 37 Wizard Run 0 Options --------- Layout 1 ASCII 0 Keyboard 0 Movement Mouse Keybinds 0 Fullscreen 1 Font 24/Smallcaps Map View 50x40 Zoom Use 0% Tactical HUD 1 Map Filters NONE Filters NONE Steam 1 RUN: e0a9f222-a887-4ca2-a569-bcd0446124b4